[Event "Titled Tuesday Blitz May 2 Late 2023"]
[White "Spitzl, Vinzent"]
[Black "Kubatko, Ivan"]
[WhiteFideId "12901253"]
[BlackFideId "24111473"]
[WhiteElo "2225"]
[BlackElo "2285"]
[Result "0-1"]
[Round "07"]
[TimeControl "180+2"]
[Date "2023.05.02"]
[WhiteClock "0:00:02"]
[BlackClock "0:00:04"]

1. e4 {[%clk 0:03:00]}  d5 {[%clk 0:03:00]} 2. exd5 {[%clk 0:03:00]}  Qxd5 {[%clk 0:03:01]} 3. Nf3 {[%clk 0:03:01]}  Nf6 {[%clk 0:03:00]} 4. d4 {[%clk 0:02:59]}  Bg4 {[%clk 0:03:00]} 5. Be2 {[%clk 0:02:58]}  Nc6 {[%clk 0:03:00]} 6. c4 {[%clk 0:02:56]}  Qf5 {[%clk 0:02:59]} 7. Be3 {[%clk 0:02:56]}  O-O-O {[%clk 0:02:58]} 8. Nbd2 {[%clk 0:02:56]}  e5 {[%clk 0:02:45]} 9. d5 {[%clk 0:02:56]}  Bxf3 {[%clk 0:02:03]} 10. Bxf3 {[%clk 0:02:44]}  Nb4 {[%clk 0:01:30]} 11. O-O {[%clk 0:02:38]}  Nc2 {[%clk 0:01:30]} 12. Be4 {[%clk 0:02:02]}  Nxe4 {[%clk 0:01:30]} 13. Qxc2 {[%clk 0:02:02]}  Ng3 {[%clk 0:01:28]} 14. Qxf5+ {[%clk 0:01:59]}  Nxf5 {[%clk 0:01:29]} 15. Ne4 {[%clk 0:01:53]}  Be7 {[%clk 0:01:05]} 16. Rad1 {[%clk 0:01:42]}  Rhf8 {[%clk 0:00:56]} 17. Rfe1 {[%clk 0:01:13]}  Nxe3 {[%clk 0:00:44]} 18. fxe3 {[%clk 0:01:13]}  f5 {[%clk 0:00:44]} 19. Nc3 {[%clk 0:01:12]}  Bc5 {[%clk 0:00:35]} 20. Na4 {[%clk 0:01:00]}  Be7 {[%clk 0:00:33]} 21. a3 {[%clk 0:00:57]}  c6 {[%clk 0:00:31]} 22. Nc3 {[%clk 0:00:56]}  Kc7 {[%clk 0:00:29]} 23. Kf2 {[%clk 0:00:46]}  Bf6 {[%clk 0:00:27]} 24. g3 {[%clk 0:00:39]}  e4 {[%clk 0:00:24]} 25. Na4 {[%clk 0:00:32]}  Be7 {[%clk 0:00:20]} 26. b4 {[%clk 0:00:29]}  cxd5 {[%clk 0:00:14]} 27. cxd5 {[%clk 0:00:27]}  g5 {[%clk 0:00:14]} 28. Nc3 {[%clk 0:00:23]}  a6 {[%clk 0:00:11]} 29. Rc1 {[%clk 0:00:19]}  Kb8 {[%clk 0:00:10]} 30. Red1 {[%clk 0:00:16]}  Bf6 {[%clk 0:00:10]} 31. Ne2 {[%clk 0:00:16]}  Be5 {[%clk 0:00:06]} 32. Kg2 {[%clk 0:00:10]}  f4 {[%clk 0:00:05]} 33. gxf4 {[%clk 0:00:09]}  gxf4 {[%clk 0:00:06]} 34. exf4 {[%clk 0:00:09]}  Bxf4 {[%clk 0:00:07]} 35. Rc4 {[%clk 0:00:09]}  Bd6 {[%clk 0:00:05]} 36. Rxe4 {[%clk 0:00:08]}  Rg8+ {[%clk 0:00:05]} 37. Kh1 {[%clk 0:00:07]}  Rc8 {[%clk 0:00:05]} 38. Rg1 {[%clk 0:00:04]}  Rgd8 {[%clk 0:00:04]} 39. Re6 {[%clk 0:00:02]}  Rc2 {[%clk 0:00:04]} 40. Nd4 {[%clk 0:00:02]}  Rxh2# {[%clk 0:00:04]} 0-1


[Site "https://www.chess.com"]

[Event "Titled Tuesday Blitz May 2 Late 2023"]
[White "D`Arruda, Ricardo D."]
[Black "Vovk, Orest"]
[WhiteFideId "100692"]
[BlackFideId "14113490"]
[WhiteElo "2271"]
[BlackElo "2215"]
[Result "0-1"]
[Round "07"]
[TimeControl "180+2"]
[Date "2023.05.02"]
[WhiteClock "0:00:02"]
[BlackClock "0:00:13"]

1. Nf3 {[%clk 0:02:59]}  Nf6 {[%clk 0:02:56]} 2. d4 {[%clk 0:02:59]}  e6 {[%clk 0:02:55]} 3. c4 {[%clk 0:02:59]}  Bb4+ {[%clk 0:02:52]} 4. Nbd2 {[%clk 0:02:58]}  O-O {[%clk 0:02:48]} 5. a3 {[%clk 0:02:59]}  Bxd2+ {[%clk 0:02:45]} 6. Bxd2 {[%clk 0:02:59]}  a5 {[%clk 0:02:45]} 7. Bf4 {[%clk 0:02:59]}  a4 {[%clk 0:02:44]} 8. e3 {[%clk 0:02:59]}  Nc6 {[%clk 0:02:43]} 9. Qc2 {[%clk 0:02:58]}  d6 {[%clk 0:02:43]} 10. Be2 {[%clk 0:02:57]}  Qe7 {[%clk 0:02:43]} 11. c5 {[%clk 0:02:49]}  e5 {[%clk 0:02:41]} 12. cxd6 {[%clk 0:02:49]}  cxd6 {[%clk 0:02:41]} 13. dxe5 {[%clk 0:02:49]}  dxe5 {[%clk 0:02:41]} 14. Bg5 {[%clk 0:02:48]}  h6 {[%clk 0:02:41]} 15. Bh4 {[%clk 0:02:48]}  Bg4 {[%clk 0:02:35]} 16. O-O {[%clk 0:02:40]}  e4 {[%clk 0:02:28]} 17. Bxf6 {[%clk 0:02:14]}  gxf6 {[%clk 0:02:19]} 18. Nd4 {[%clk 0:02:14]}  Nxd4 {[%clk 0:02:19]} 19. exd4 {[%clk 0:02:14]}  Bxe2 {[%clk 0:02:19]} 20. Qxe2 {[%clk 0:02:14]}  f5 {[%clk 0:02:18]} 21. Qe3 {[%clk 0:02:02]}  Qg5 {[%clk 0:02:17]} 22. f4 {[%clk 0:02:02]}  Qg6 {[%clk 0:02:13]} 23. d5 {[%clk 0:02:01]}  Kh7 {[%clk 0:02:11]} 24. Rad1 {[%clk 0:01:55]}  Rg8 {[%clk 0:02:10]} 25. Rf2 {[%clk 0:01:54]}  Qg4 {[%clk 0:02:07]} 26. Rfd2 {[%clk 0:01:52]}  Rad8 {[%clk 0:02:06]} 27. h3 {[%clk 0:01:09]}  Qg6 {[%clk 0:02:00]} 28. Qe2 {[%clk 0:01:05]}  Qg3 {[%clk 0:01:53]} 29. d6 {[%clk 0:00:50]}  Qxf4 {[%clk 0:01:43]} 30. Rf1 {[%clk 0:00:50]}  Qe5 {[%clk 0:01:35]} 31. Qh5 {[%clk 0:00:46]}  Rxd6 {[%clk 0:01:11]} 32. Rxd6 {[%clk 0:00:45]}  Qxd6 {[%clk 0:01:09]} 33. Qxf7+ {[%clk 0:00:45]}  Rg7 {[%clk 0:01:06]} 34. Qxf5+ {[%clk 0:00:45]}  Qg6 {[%clk 0:01:06]} 35. Qxg6+ {[%clk 0:00:37]}  Kxg6 {[%clk 0:01:07]} 36. Rf4 {[%clk 0:00:34]}  Re7 {[%clk 0:01:06]} 37. Kf2 {[%clk 0:00:34]}  Re5 {[%clk 0:00:59]} 38. Ke3 {[%clk 0:00:32]}  Rb5 {[%clk 0:00:57]} 39. Rf2 {[%clk 0:00:32]}  Re5 {[%clk 0:00:52]} 40. Rd2 {[%clk 0:00:20]}  Kf5 {[%clk 0:00:47]} 41. Rf2+ {[%clk 0:00:15]}  Kg5 {[%clk 0:00:45]} 42. g3 {[%clk 0:00:13]}  h5 {[%clk 0:00:41]} 43. Rf4 {[%clk 0:00:12]}  Rb5 {[%clk 0:00:40]} 44. h4+ {[%clk 0:00:12]}  Kg6 {[%clk 0:00:39]} 45. Rf2 {[%clk 0:00:12]}  Rb3+ {[%clk 0:00:37]} 46. Kxe4 {[%clk 0:00:11]}  Rxg3 {[%clk 0:00:37]} 47. Ke5 {[%clk 0:00:07]}  Re3+ {[%clk 0:00:25]} 48. Kd5 {[%clk 0:00:06]}  Rb3 {[%clk 0:00:21]} 49. Ke5 {[%clk 0:00:04]}  b5 {[%clk 0:00:20]} 50. Ke6 {[%clk 0:00:04]}  Re3+ {[%clk 0:00:17]} 51. Kd5 {[%clk 0:00:03]}  Rh3 {[%clk 0:00:16]} 52. Kc5 {[%clk 0:00:02]}  Rxh4 {[%clk 0:00:15]} 53. Kxb5 {[%clk 0:00:02]}  Rg4 {[%clk 0:00:13]} 0-1


[Site "https://www.chess.com"]

[Event "Titled Tuesday Blitz May 2 Late 2023"]
[White "Nazaretyan, Tigran"]
[Black "Bryant, Todd"]
[WhiteFideId "24162345"]
[BlackFideId "2031299"]
[WhiteElo "2111"]
[BlackElo "2075"]
[Result "1-0"]
[Round "07"]
[TimeControl "180+2"]
[Date "2023.05.02"]
[WhiteClock "0:01:57"]
[BlackClock "0:00:17"]

1. d4 {[%clk 0:02:59]}  Nf6 {[%clk 0:02:59]} 2. c4 {[%clk 0:02:59]}  g6 {[%clk 0:02:59]} 3. Nc3 {[%clk 0:02:58]}  Bg7 {[%clk 0:02:59]} 4. e4 {[%clk 0:02:58]}  d6 {[%clk 0:02:59]} 5. Nf3 {[%clk 0:02:59]}  O-O {[%clk 0:03:00]} 6. Be2 {[%clk 0:02:59]}  e5 {[%clk 0:03:00]} 7. O-O {[%clk 0:02:59]}  Nc6 {[%clk 0:03:00]} 8. d5 {[%clk 0:02:59]}  Ne7 {[%clk 0:03:01]} 9. b4 {[%clk 0:02:59]}  a5 {[%clk 0:03:01]} 10. bxa5 {[%clk 0:02:57]}  Rxa5 {[%clk 0:02:59]} 11. a4 {[%clk 0:02:57]}  Ne8 {[%clk 0:02:58]} 12. Nd2 {[%clk 0:02:56]}  f5 {[%clk 0:02:56]} 13. Ba3 {[%clk 0:02:52]}  b6 {[%clk 0:02:55]} 14. Bb4 {[%clk 0:02:51]}  Ra8 {[%clk 0:02:54]} 15. Nb5 {[%clk 0:02:50]}  Nf6 {[%clk 0:02:30]} 16. a5 {[%clk 0:02:43]}  bxa5 {[%clk 0:02:03]} 17. Bxa5 {[%clk 0:02:42]}  Rxa5 {[%clk 0:02:00]} 18. Rxa5 {[%clk 0:02:41]}  c6 {[%clk 0:02:00]} 19. Ra8 {[%clk 0:02:21]}  cxb5 {[%clk 0:01:57]} 20. cxb5 {[%clk 0:02:21]}  fxe4 {[%clk 0:01:45]} 21. Qb3 {[%clk 0:02:13]}  Qb6 {[%clk 0:01:15]} 22. Nc4 {[%clk 0:02:10]}  Qc5 {[%clk 0:01:16]} 23. b6 {[%clk 0:02:04]}  Bb7 {[%clk 0:00:55]} 24. Ra5 {[%clk 0:02:03]}  Qc8 {[%clk 0:00:27]} 25. Nxd6 {[%clk 0:02:02]}  Qb8 {[%clk 0:00:15]} 26. Nxb7 {[%clk 0:02:00]}  Qxb7 {[%clk 0:00:16]} 27. d6+ {[%clk 0:02:00]}  Ned5 {[%clk 0:00:17]} 28. Bc4 {[%clk 0:01:57]} 1-0


[Site "https://www.chess.com"]

[Event "Titled Tuesday Blitz May 2 Late 2023"]
[White "Meunier-Pion, Jean"]
[Black "Bogaudinov, Rushan"]
[WhiteFideId "20685327"]
[BlackFideId "4129288"]
[WhiteElo "2124"]
[BlackElo "1967"]
[Result "1-0"]
[Round "07"]
[TimeControl "180+2"]
[Date "2023.05.02"]
[WhiteClock "0:02:07"]
[BlackClock "0:00:54"]

1. d4 {[%clk 0:03:00]}  Nf6 {[%clk 0:01:57]} 2. c4 {[%clk 0:03:00]}  e6 {[%clk 0:01:57]} 3. g3 {[%clk 0:03:00]}  d5 {[%clk 0:01:55]} 4. Bg2 {[%clk 0:02:59]}  Bb4+ {[%clk 0:01:55]} 5. Bd2 {[%clk 0:02:59]}  a5 {[%clk 0:01:55]} 6. Nf3 {[%clk 0:02:57]}  O-O {[%clk 0:01:54]} 7. O-O {[%clk 0:02:57]}  dxc4 {[%clk 0:01:54]} 8. a3 {[%clk 0:02:53]}  Be7 {[%clk 0:01:51]} 9. e3 {[%clk 0:02:49]}  b5 {[%clk 0:01:48]} 10. Ne5 {[%clk 0:02:49]}  Nd5 {[%clk 0:01:48]} 11. e4 {[%clk 0:02:42]}  Nf6 {[%clk 0:01:45]} 12. Be3 {[%clk 0:02:32]}  a4 {[%clk 0:01:35]} 13. Nc3 {[%clk 0:02:32]}  c6 {[%clk 0:01:35]} 14. d5 {[%clk 0:02:26]}  Bb7 {[%clk 0:01:25]} 15. dxe6 {[%clk 0:02:24]}  fxe6 {[%clk 0:01:24]} 16. Bh3 {[%clk 0:02:24]}  Qc8 {[%clk 0:01:18]} 17. Ne2 {[%clk 0:02:20]}  Na6 {[%clk 0:01:16]} 18. Nf4 {[%clk 0:02:19]}  Nc7 {[%clk 0:01:10]} 19. Bb6 {[%clk 0:02:18]}  Nxe4 {[%clk 0:01:02]} 20. Bxc7 {[%clk 0:02:05]}  Qxc7 {[%clk 0:01:02]} 21. Bxe6+ {[%clk 0:02:05]}  Kh8 {[%clk 0:01:00]} 22. Nfg6+ {[%clk 0:02:06]}  hxg6 {[%clk 0:00:54]} 23. Nxg6+ {[%clk 0:02:07]} 1-0


[Site "https://www.chess.com"]

[Event "Titled Tuesday Blitz May 2 Late 2023"]
[White "Tsyhanchuk, Stanislav"]
[Black "Remolar Gallen, Jose"]
[WhiteFideId "13505130"]
[BlackFideId "2215187"]
[WhiteElo "2173"]
[BlackElo "2223"]
[Result "1-0"]
[Round "07"]
[TimeControl "180+2"]
[Date "2023.05.02"]
[WhiteClock "0:00:22"]
[BlackClock "0:00:04"]

1. c4 {[%clk 0:03:00]}  g6 {[%clk 0:02:59]} 2. Nc3 {[%clk 0:03:00]}  Bg7 {[%clk 0:03:00]} 3. e4 {[%clk 0:03:01]}  d6 {[%clk 0:02:59]} 4. d4 {[%clk 0:03:01]}  Nc6 {[%clk 0:02:59]} 5. Nge2 {[%clk 0:02:52]}  e5 {[%clk 0:02:47]} 6. d5 {[%clk 0:02:52]}  Nce7 {[%clk 0:02:42]} 7. g3 {[%clk 0:02:40]}  f5 {[%clk 0:02:41]} 8. Bg2 {[%clk 0:02:39]}  Nf6 {[%clk 0:02:41]} 9. O-O {[%clk 0:02:39]}  O-O {[%clk 0:02:36]} 10. f4 {[%clk 0:02:36]}  Nh5 {[%clk 0:02:25]} 11. fxe5 {[%clk 0:02:27]}  Bxe5 {[%clk 0:02:24]} 12. Nf4 {[%clk 0:02:26]}  Nxf4 {[%clk 0:02:22]} 13. Bxf4 {[%clk 0:02:09]}  Bxf4 {[%clk 0:02:19]} 14. Rxf4 {[%clk 0:02:10]}  fxe4 {[%clk 0:02:17]} 15. Rxf8+ {[%clk 0:02:08]}  Qxf8 {[%clk 0:02:18]} 16. Nxe4 {[%clk 0:02:07]}  Nf5 {[%clk 0:02:13]} 17. Qe2 {[%clk 0:02:05]}  Bd7 {[%clk 0:02:09]} 18. Rf1 {[%clk 0:02:04]}  Qg7 {[%clk 0:02:03]} 19. g4 {[%clk 0:01:55]}  Nd4 {[%clk 0:02:02]} 20. Qd3 {[%clk 0:01:54]}  Rf8 {[%clk 0:02:00]} 21. g5 {[%clk 0:01:35]}  Bf5 {[%clk 0:01:51]} 22. Bh3 {[%clk 0:01:13]}  Qe5 {[%clk 0:01:20]} 23. Bxf5 {[%clk 0:01:04]}  Rxf5 {[%clk 0:01:21]} 24. Nf6+ {[%clk 0:00:59]}  Kg7 {[%clk 0:01:20]} 25. Rxf5 {[%clk 0:00:56]}  Nxf5 {[%clk 0:01:14]} 26. Qe4 {[%clk 0:00:31]}  Nd4 {[%clk 0:00:26]} 27. Qxe5 {[%clk 0:00:26]}  dxe5 {[%clk 0:00:27]} 28. Ne8+ {[%clk 0:00:21]}  Kf7 {[%clk 0:00:27]} 29. Nxc7 {[%clk 0:00:22]}  Nf3+ {[%clk 0:00:25]} 30. Kf2 {[%clk 0:00:22]}  Nxg5 {[%clk 0:00:25]} 31. Ke3 {[%clk 0:00:20]}  Ke7 {[%clk 0:00:23]} 32. Nb5 {[%clk 0:00:20]}  a6 {[%clk 0:00:22]} 33. Nc3 {[%clk 0:00:20]}  Kd6 {[%clk 0:00:03]} 34. Ne4+ {[%clk 0:00:20]}  Nxe4 {[%clk 0:00:04]} 35. Kxe4 {[%clk 0:00:21]}  a5 {[%clk 0:00:04]} 36. a3 {[%clk 0:00:20]}  b6 {[%clk 0:00:04]} 37. b4 {[%clk 0:00:20]}  axb4 {[%clk 0:00:04]} 38. axb4 {[%clk 0:00:21]}  g5 {[%clk 0:00:03]} 39. c5+ {[%clk 0:00:21]}  bxc5 {[%clk 0:00:03]} 40. bxc5+ {[%clk 0:00:21]}  Kxc5 {[%clk 0:00:04]} 41. Kxe5 {[%clk 0:00:22]}  g4 {[%clk 0:00:04]} 42. d6 {[%clk 0:00:22]} 1-0


[Site "https://www.chess.com"]

[Event "Titled Tuesday Blitz May 2 Late 2023"]
[White "Jodorcovsky Werjivker, Paulo"]
[Black "Tomaszewski, Kacper"]
[WhiteFideId "3700305"]
[BlackFideId "1127373"]
[WhiteElo "2120"]
[BlackElo "2211"]
[Result "0-1"]
[Round "07"]
[TimeControl "180+2"]
[Date "2023.05.02"]
[WhiteClock "0:00:03"]
[BlackClock "0:00:10"]

1. e4 {[%clk 0:03:00]}  d6 {[%clk 0:02:59]} 2. d4 {[%clk 0:03:00]}  Nf6 {[%clk 0:02:59]} 3. Nc3 {[%clk 0:02:59]}  e5 {[%clk 0:02:58]} 4. Nf3 {[%clk 0:02:57]}  Nbd7 {[%clk 0:02:58]} 5. h3 {[%clk 0:02:54]}  Be7 {[%clk 0:02:57]} 6. Be3 {[%clk 0:02:55]}  c6 {[%clk 0:02:57]} 7. Qd2 {[%clk 0:02:55]}  h6 {[%clk 0:02:58]} 8. Be2 {[%clk 0:02:53]}  Qc7 {[%clk 0:02:58]} 9. O-O-O {[%clk 0:02:53]}  b5 {[%clk 0:02:57]} 10. Bd3 {[%clk 0:02:43]}  a5 {[%clk 0:02:54]} 11. g4 {[%clk 0:02:42]}  Nh7 {[%clk 0:02:51]} 12. h4 {[%clk 0:02:41]}  a4 {[%clk 0:02:49]} 13. Ne1 {[%clk 0:02:25]}  b4 {[%clk 0:02:49]} 14. Nb1 {[%clk 0:02:24]}  c5 {[%clk 0:02:46]} 15. dxc5 {[%clk 0:02:20]}  dxc5 {[%clk 0:02:45]} 16. Bb5 {[%clk 0:02:18]}  Nf6 {[%clk 0:02:35]} 17. g5 {[%clk 0:02:17]}  Nxe4 {[%clk 0:02:34]} 18. Qd5 {[%clk 0:02:13]}  Rb8 {[%clk 0:02:27]} 19. Qxe4 {[%clk 0:02:05]}  Rxb5 {[%clk 0:02:22]} 20. Qc4 {[%clk 0:01:55]}  Rb8 {[%clk 0:02:17]} 21. gxh6 {[%clk 0:01:53]}  gxh6 {[%clk 0:02:14]} 22. Rg1 {[%clk 0:01:50]}  Nb6 {[%clk 0:02:06]} 23. Qe4 {[%clk 0:01:39]}  Be6 {[%clk 0:02:01]} 24. Nd3 {[%clk 0:01:36]}  Nd7 {[%clk 0:01:45]} 25. f4 {[%clk 0:01:32]}  f5 {[%clk 0:01:35]} 26. Qg2 {[%clk 0:01:30]}  e4 {[%clk 0:01:35]} 27. Ne5 {[%clk 0:01:08]}  Nxe5 {[%clk 0:01:34]} 28. fxe5 {[%clk 0:01:09]}  a3 {[%clk 0:01:26]} 29. Qg6+ {[%clk 0:00:59]}  Bf7 {[%clk 0:01:24]} 30. Qxf5 {[%clk 0:00:59]}  Bxa2 {[%clk 0:01:14]} 31. e6 {[%clk 0:00:51]}  Bd6 {[%clk 0:00:39]} 32. Qg6+ {[%clk 0:00:35]}  Kd8 {[%clk 0:00:39]} 33. Qf6+ {[%clk 0:00:34]}  Kc8 {[%clk 0:00:39]} 34. Rxd6 {[%clk 0:00:11]}  axb2+ {[%clk 0:00:37]} 35. Kxb2 {[%clk 0:00:09]}  Qxd6 {[%clk 0:00:33]} 36. Qxh8+ {[%clk 0:00:09]}  Kb7 {[%clk 0:00:33]} 37. Qg7+ {[%clk 0:00:08]}  Kb6 {[%clk 0:00:32]} 38. Kxa2 {[%clk 0:00:07]}  Ra8+ {[%clk 0:00:21]} 39. Kb2 {[%clk 0:00:07]}  Qd5 {[%clk 0:00:13]} 40. e7 {[%clk 0:00:03]}  Ra2+ {[%clk 0:00:13]} 41. Kc1 {[%clk 0:00:04]}  Rxc2+ {[%clk 0:00:13]} 42. Kxc2 {[%clk 0:00:04]}  Qd3+ {[%clk 0:00:14]} 43. Kb2 {[%clk 0:00:03]}  b3 {[%clk 0:00:10]} 0-1


[Site "https://www.chess.com"]

[Event "Titled Tuesday Blitz May 2 Late 2023"]
[White "Eisa Mohmood, Alkhoori"]
[Black "Bjelobrk, Igor"]
[WhiteFideId "9316116"]
[BlackFideId "4300726"]
[WhiteElo "1310"]
[BlackElo "2335"]
[Result "0-1"]
[Round "07"]
[TimeControl "180+2"]
[Date "2023.05.02"]
[WhiteClock "0:01:45"]
[BlackClock "0:02:28"]

1. e4 {[%clk 0:03:00]}  e6 {[%clk 0:02:58]} 2. d4 {[%clk 0:03:00]}  d5 {[%clk 0:02:57]} 3. Nd2 {[%clk 0:02:59]}  c5 {[%clk 0:02:57]} 4. exd5 {[%clk 0:02:58]}  Qxd5 {[%clk 0:02:56]} 5. Ngf3 {[%clk 0:02:59]}  cxd4 {[%clk 0:02:56]} 6. Bc4 {[%clk 0:02:59]}  Qd7 {[%clk 0:02:55]} 7. O-O {[%clk 0:02:53]}  Nc6 {[%clk 0:02:55]} 8. Nb3 {[%clk 0:02:53]}  a6 {[%clk 0:02:55]} 9. Nbxd4 {[%clk 0:02:53]}  Nxd4 {[%clk 0:02:55]} 10. Nxd4 {[%clk 0:02:52]}  Nf6 {[%clk 0:02:55]} 11. Re1 {[%clk 0:02:47]}  Bc5 {[%clk 0:02:53]} 12. c3 {[%clk 0:02:40]}  b5 {[%clk 0:02:51]} 13. Bxe6 {[%clk 0:02:32]}  fxe6 {[%clk 0:02:48]} 14. Rxe6+ {[%clk 0:02:18]}  Qxe6 {[%clk 0:02:43]} 15. Nxe6 {[%clk 0:02:17]}  Bxe6 {[%clk 0:02:44]} 16. Bg5 {[%clk 0:02:16]}  O-O {[%clk 0:02:40]} 17. Qe2 {[%clk 0:01:58]}  Bc4 {[%clk 0:02:38]} 18. Qc2 {[%clk 0:01:52]}  Ng4 {[%clk 0:02:35]} 19. Bh4 {[%clk 0:01:48]}  Nxf2 {[%clk 0:02:32]} 20. Bxf2 {[%clk 0:01:46]}  Rxf2 {[%clk 0:02:31]} 21. Qe4 {[%clk 0:01:46]}  Re2+ {[%clk 0:02:29]} 22. Qd4 {[%clk 0:01:45]}  Bxd4+ {[%clk 0:02:28]} 0-1


[Site "https://www.chess.com"]

[Event "Titled Tuesday Blitz May 2 Late 2023"]
[White "Suvorov, Luca"]
[Black "Ezat, Mohamed"]
[WhiteFideId "12977071"]
[BlackFideId "10600906"]
[WhiteElo "2202"]
[BlackElo "2386"]
[Result "1-0"]
[Round "07"]
[TimeControl "180+2"]
[Date "2023.05.02"]
[WhiteClock "0:00:28"]
[BlackClock "0:00:02"]

1. a3 {[%clk 0:03:00]}  d5 {[%clk 0:02:56]} 2. d4 {[%clk 0:03:00]}  Nf6 {[%clk 0:02:50]} 3. Nf3 {[%clk 0:02:57]}  Bf5 {[%clk 0:02:47]} 4. c4 {[%clk 0:02:54]}  e6 {[%clk 0:02:43]} 5. Nc3 {[%clk 0:02:54]}  c6 {[%clk 0:02:38]} 6. h3 {[%clk 0:02:47]}  Bd6 {[%clk 0:02:35]} 7. Nh4 {[%clk 0:02:32]}  Bg6 {[%clk 0:02:15]} 8. Nxg6 {[%clk 0:02:28]}  hxg6 {[%clk 0:02:14]} 9. Bg5 {[%clk 0:02:21]}  Nbd7 {[%clk 0:02:13]} 10. e3 {[%clk 0:02:16]}  Qc7 {[%clk 0:02:11]} 11. f4 {[%clk 0:02:07]}  Ne4 {[%clk 0:02:08]} 12. Nxe4 {[%clk 0:01:54]}  dxe4 {[%clk 0:02:07]} 13. Qg4 {[%clk 0:01:55]}  c5 {[%clk 0:01:57]} 14. d5 {[%clk 0:01:49]}  e5 {[%clk 0:01:55]} 15. f5 {[%clk 0:01:42]}  Qa5+ {[%clk 0:01:10]} 16. Kf2 {[%clk 0:01:31]}  gxf5 {[%clk 0:00:49]} 17. Qxf5 {[%clk 0:01:27]}  Rh5 {[%clk 0:00:41]} 18. Qg4 {[%clk 0:00:59]}  g6 {[%clk 0:00:40]} 19. Bh4 {[%clk 0:00:56]}  Qd2+ {[%clk 0:00:31]} 20. Be2 {[%clk 0:00:54]}  Rf5+ {[%clk 0:00:31]} 21. Kg1 {[%clk 0:00:55]}  Qxe3+ {[%clk 0:00:30]} 22. Kh2 {[%clk 0:00:53]}  Qf4+ {[%clk 0:00:27]} 23. Bg3 {[%clk 0:00:53]}  Qd2 {[%clk 0:00:15]} 24. Rhf1 {[%clk 0:00:52]}  Nf6 {[%clk 0:00:14]} 25. Qh4 {[%clk 0:00:47]}  Rxf1 {[%clk 0:00:06]} 26. Rxf1 {[%clk 0:00:44]}  Ng8 {[%clk 0:00:05]} 27. Bg4 {[%clk 0:00:41]}  f5 {[%clk 0:00:04]} 28. Qh7 {[%clk 0:00:40]}  O-O-O {[%clk 0:00:04]} 29. Bh4 {[%clk 0:00:33]}  e3 {[%clk 0:00:02]} 30. Bxd8 {[%clk 0:00:33]}  e4+ {[%clk 0:00:03]} 31. Kh1 {[%clk 0:00:32]}  e2 {[%clk 0:00:03]} 32. Bxe2 {[%clk 0:00:30]}  Qxe2 {[%clk 0:00:03]} 33. Rg1 {[%clk 0:00:30]}  f4 {[%clk 0:00:02]} 34. Qxg8 {[%clk 0:00:29]}  f3 {[%clk 0:00:02]} 35. Be7+ {[%clk 0:00:28]} 1-0


[Site "https://www.chess.com"]

[Event "Titled Tuesday Blitz May 2 Late 2023"]
[White "Kula, Robert"]
[Black "Prem, Pranav"]
[WhiteFideId "1101218"]
[BlackFideId "30901057"]
[WhiteElo "2180"]
[BlackElo "1970"]
[Result "1-0"]
[Round "07"]
[TimeControl "180+2"]
[Date "2023.05.02"]
[WhiteClock "0:00:17"]
[BlackClock "0:00:03"]

1. d4 {[%clk 0:03:00]}  d5 {[%clk 0:02:48]} 2. c4 {[%clk 0:02:51]}  e6 {[%clk 0:02:44]} 3. Nc3 {[%clk 0:02:51]}  Nf6 {[%clk 0:02:44]} 4. Bg5 {[%clk 0:02:51]}  Be7 {[%clk 0:02:44]} 5. Nf3 {[%clk 0:02:50]}  O-O {[%clk 0:02:43]} 6. e3 {[%clk 0:02:49]}  Nbd7 {[%clk 0:02:43]} 7. Qc2 {[%clk 0:02:49]}  h6 {[%clk 0:02:43]} 8. Bh4 {[%clk 0:02:47]}  b6 {[%clk 0:02:44]} 9. cxd5 {[%clk 0:02:43]}  exd5 {[%clk 0:02:42]} 10. Bd3 {[%clk 0:02:42]}  Bb7 {[%clk 0:02:42]} 11. O-O {[%clk 0:02:42]}  c5 {[%clk 0:02:33]} 12. Rac1 {[%clk 0:02:32]}  Rc8 {[%clk 0:02:15]} 13. Qe2 {[%clk 0:02:30]}  Re8 {[%clk 0:02:03]} 14. dxc5 {[%clk 0:02:21]}  bxc5 {[%clk 0:02:03]} 15. Rfd1 {[%clk 0:02:21]}  Qb6 {[%clk 0:01:59]} 16. Bb1 {[%clk 0:02:18]}  Nf8 {[%clk 0:01:48]} 17. b3 {[%clk 0:01:59]}  d4 {[%clk 0:01:26]} 18. Na4 {[%clk 0:01:52]}  Qe6 {[%clk 0:00:56]} 19. Bxf6 {[%clk 0:01:46]}  Qxf6 {[%clk 0:00:53]} 20. exd4 {[%clk 0:01:41]}  cxd4 {[%clk 0:00:20]} 21. Rxc8 {[%clk 0:01:37]}  Rxc8 {[%clk 0:00:21]} 22. Nxd4 {[%clk 0:01:27]}  Bd6 {[%clk 0:00:17]} 23. Nf5 {[%clk 0:01:21]}  Bb4 {[%clk 0:00:14]} 24. Qb5 {[%clk 0:01:05]}  Qc6 {[%clk 0:00:13]} 25. Qxc6 {[%clk 0:00:50]}  Bxc6 {[%clk 0:00:14]} 26. Nb2 {[%clk 0:00:49]}  Ne6 {[%clk 0:00:13]} 27. Nc4 {[%clk 0:00:47]}  Bb5 {[%clk 0:00:07]} 28. Ncd6 {[%clk 0:00:26]}  Rd8 {[%clk 0:00:07]} 29. Bc2 {[%clk 0:00:23]}  Bc6 {[%clk 0:00:03]} 30. Ne7+ {[%clk 0:00:18]}  Kf8 {[%clk 0:00:03]} 31. Nxc6 {[%clk 0:00:18]}  Rxd6 {[%clk 0:00:03]} 32. Nxb4 {[%clk 0:00:17]} 1-0


[Site "https://www.chess.com"]